bitfinex/quotes_ETHUSD_20260131
["timestamp","ask_amount","ask_price","bid_price","bid_amount"]
[1769835896241,2.48695153,2694.7,2693.9,0.92912256]
[1769835896442,2.48695153,2694.7,2693.9,1.5397402]
[1769835896740,1.55918392,2694.6,2693.9,1.5397402]
[1769835896913,1.55918392,2694.6,2693.9,0.61171764]
[1769835899432,2.48697592,2694.6,2693.9,0.61171764]
[1769835899638,1.55918392,2694.5,2693.9,0.61171764]
[1769835900450,1.55918392,2694.5,2693.9,1.53973583]
[1769835900949,1.55918392,2694.5,2694.0,0.52519616]
[1769835901136,1.55918392,2694.5,2693.9,0.92911819]
[1769835901556,1.55918392,2694.5,2693.9,0.0011]
[1769835902250,2.48694639,2694.7,2693.9,1.46590878]
[1769835906153,2.48694639,2694.7,2694.1,0.0011]
[1769835906460,0.001,2694.5,2693.9,2.39390642]
[1769835906661,0.001,2694.5,2693.9,2.92755347]
[1769835907366,1.57261361,2694.5,2693.9,0.0011]
[1769835907590,1.57261361,2694.5,2693.6,0.0011]
[1769835907591,1.57161361,2694.4,2693.6,0.0011]
[1769835907728,1.57161361,2694.4,2693.4,0.0011]
[1769835907934,5.51838455,2694.5,2693.1,0.0011]
[1769835907935,1.57161361,2694.1,2693.1,0.0011]
[1769835908267,1.57161361,2693.9,2693.1,0.0011]
[1769835909028,1.57161361,2693.8,2692.8,0.0011]
[1769835910551,0.92809147,2693.7,2692.8,0.0011]
[1769835910745,1.57161361,2693.5,2692.8,0.0011]
[1769835913470,1.57161361,2693.3,2692.8,0.0011]
[1769835915874,1.57161361,2693.2,2692.8,0.0011]
[1769835917758,1.57161361,2693.2,2693.0,0.0011]
[1769835924948,1.57161361,2693.1,2693.0,0.0011]
[1769835925280,1.57161361,2693.0,2692.6,0.0011]
[1769835925581,1.57161361,2693.0,2692.4,1.79968914]
[1769835926377,1.57161361,2692.8,2692.4,1.79968914]
[1769835928783,2.50003371,2692.8,2692.4,1.79968914]
[1769835928955,0.55183846,2692.7,2692.4,1.79968914]
[1769835930057,0.8,2692.5,2692.4,1.79968914]
[1769835930356,0.8,2692.5,2692.4,1.80078914]
[1769835936062,1.57161361,2693.6,2692.5,1.26252991]
[1769835936258,1.57161361,2693.6,2692.4,2.72930597]
[1769835937053,1.50400348,2693.4,2692.4,3.99894782]
[1769835937261,1.50400348,2693.4,2692.5,0.77142062]
[1769835938579,1.50400348,2693.4,2692.5,2.04801578]
[1769835939191,2.43221036,2693.4,2692.6,0.92847062]
[1769835942308,0.001,2693.2,2692.6,0.92847062]
[1769835942510,0.001,2693.2,2692.7,0.29764864]
[1769835945802,0.001,2693.2,2692.7,1.22607964]
[1769835948088,0.001,2693.2,2692.8,1.30734891]
[1769835948406,2.52655801,2693.6,2692.8,1.30734891]
[1769835949603,2.52655801,2693.6,2692.8,2.23574194]
[1769835949904,2.52655801,2693.6,2692.9,0.25333906]
[1769835951310,1.59840854,2693.6,2692.9,0.25333906]
[1769835951517,1.59840854,2693.8,2692.9,1.57172222]
[1769835951682,0.92904357,2693.9,2692.9,1.57172222]
[1769835951683,0.92904357,2693.9,2693.1,1.31838316]
[1769835951883,0.001,2693.9,2693.2,1.54305475]
[1769835953290,1.59840854,2693.8,2692.9,0.25333906]
[1769835953505,1.59840854,2693.6,2692.7,0.92842705]
[1769835953684,0.92816038,2693.5,2692.5,3.71400317]
[1769835953879,1.59840854,2693.4,2692.5,3.71400317]
[1769835954085,1.59840854,2693.4,2692.6,0.64432974]
[1769835955826,1.59840854,2693.4,2692.7,0.92843614]
[1769835955995,1.59840854,2693.3,2692.6,1.57278321]
[1769835956199,1.59840854,2693.3,2692.6,1.57279171]
[1769835956394,1.59840854,2693.3,2692.5,0.92848304]
[1769835956609,1.59840854,2693.3,2692.4,2.72930367]
[1769835958742,1.59840854,2693.2,2692.4,1.80078914]
[1769835959040,1.59840854,2693.0,2692.4,1.80078914]
[1769835962215,1.59840854,2692.8,2692.4,1.80078914]
[1769835964625,0.92836718,2692.9,2692.4,1.80078914]
[1769835964626,1.59840854,2692.6,2692.4,1.80078914]
[1769835972961,1.50589802,2692.5,2692.4,1.80078914]
[1769835973239,1.50589802,2692.5,2691.7,0.0011]
[1769835973432,0.92849729,2692.6,2691.7,0.0011]
[1769835973433,1.50589802,2692.3,2691.7,0.0011]
[1769835975570,2.43447564,2692.3,2691.7,0.0011]
[1769835978242,2.43447564,2692.3,2691.9,0.0011]
[1769835978941,1.17199801,2692.4,2691.9,0.0011]
[1769835980470,0.92840166,2692.8,2691.9,1.39510306]
[1769835980652,2.43428943,2692.9,2691.9,1.39510306]
[1769835981454,1.50589802,2692.8,2691.9,1.39510306]
[1769835981955,1.50589802,2692.7,2691.9,0.0011]
[1769835982119,1.74932696,2692.7,2691.9,0.0011]
[1769835982321,0.92847062,2692.6,2691.9,0.0011]
[1769835982552,1.50589802,2692.5,2691.9,0.0011]
[1769835985638,0.92839212,2692.9,2691.9,1.405227]
[1769835985963,2.43429014,2692.9,2692.1,1.404127]
[1769835986461,1.50589802,2692.8,2692.1,1.404127]
[1769835989356,1.50589802,2692.8,2692.1,2.33276334]
[1769835989862,2.43430364,2692.8,2692.1,2.33276334]
[1769835990062,2.43430364,2692.8,2692.1,2.96096961]
[1769835990362,2.43430364,2692.8,2692.1,2.96206961]
[1769835990526,0.001,2692.6,2692.1,2.96206961]
[1769835991057,0.001,2692.6,2692.1,1.55794261]
[1769835991433,0.001,2692.6,2692.1,0.62930627]
[1769835993073,0.001,2692.6,2692.1,2.97725933]
[1769835993260,0.001,2692.6,2692.2,0.69253544]
[1769835996969,0.001,2692.6,2692.2,1.62114338]
[1769835999180,1.50589802,2692.8,2692.2,1.62114338]
[1769835999388,0.92825413,2693.3,2692.3,1.43661457]
[1769835999582,0.92825413,2693.3,2692.5,1.43661457]
[1769836001184,2.46410471,2693.3,2692.5,1.43661457]
[1769836001488,2.46410471,2693.3,2692.5,2.36508919]
[1769836001959,1.53585058,2693.3,2692.6,1.43974316]
[1769836002376,1.70621886,2693.4,2692.6,1.43974316]
[1769836002586,3.24206944,2693.4,2692.6,1.88143527]
[1769836003183,0.001,2693.1,2692.7,1.44277681]
[1769836003870,0.001,2693.1,2692.8,1.44277681]
[1769836005900,2.46399956,2693.6,2692.9,1.44784046]
[1769836005901,0.92814898,2693.6,2692.9,1.44784046]
[1769836006192,0.001,2693.7,2693.0,1.68546163]
[1769836007479,1.53585058,2693.6,2693.0,0.23762117]
[1769836010194,1.53585058,2693.6,2693.0,1.16594916]
[1769836011461,0.92909661,2693.7,2693.0,1.16594916]
[1769836011796,0.001,2693.7,2693.0,2.62216268]
[1769836011962,0.001,2693.7,2693.1,0.26221627]
[1769836013192,0.001,2693.7,2693.0,2.62216268]
[1769836013193,1.53685058,2693.7,2693.0,0.23762117]
[1769836013393,1.53685058,2693.7,2692.8,0.9283972]
[1769836013895,1.53585058,2693.5,2692.5,1.46093621]
[1769836015367,1.53685058,2693.5,2692.5,1.46093621]
[1769836016503,1.53685058,2693.5,2692.7,1.46474653]
[1769836016703,1.53685058,2693.5,2692.8,0.23932172]
[1769836017915,1.53685058,2693.5,2692.8,1.70530855]
[1769836018212,0.001,2693.5,2692.8,1.70530855]
[1769836018789,0.001,2693.5,2692.9,0.92836718]
[1769836023914,1.53685058,2693.5,2692.9,0.92836718]
[1769836024315,1.78344523,2693.5,2692.3,1.44769165]
[1769836024487,1.78344523,2693.5,2692.6,0.92846296]
[1769836024883,1.78344523,2693.5,2692.5,3.71400884]
[1769836025202,1.78344523,2693.5,2692.7,0.92842782]
[1769836025405,1.80700811,2693.4,2692.7,0.92842782]
[1769836026714,1.1993619,2693.4,2692.6,0.92847062]
[1769836026916,1.62232635,2693.3,2692.6,0.92847062]
[1769836027218,1.62232635,2693.3,2693.1,0.0011]
[1769836027516,1.62232635,2693.3,2692.5,0.9284804]
[1769836027817,1.92925464,2693.3,2692.9,0.0011]
[1769836034588,0.30692829,2693.3,2692.9,0.0011]
[1769836034818,0.001,2693.4,2692.9,0.0011]
[1769836036114,1.62332635,2693.4,2692.9,0.0011]
[1769836040625,0.001,2693.4,2692.9,0.0011]
[1769836040796,0.001,2693.4,2692.9,1.41010561]
[1769836040996,0.001,2693.4,2693.1,0.0011]
[1769836041224,0.001,2693.4,2692.9,0.0011]
[1769836041422,0.001,2693.3,2692.9,0.0011]
[1769836045530,0.001,2693.3,2692.9,0.60512976]
[1769836047531,0.001,2693.3,2693.0,0.92833271]
[1769836054044,0.001,2693.5,2693.0,0.92833271]
[1769836054949,0.001,2693.5,2693.1,0.0011]
[1769836055161,1.62332635,2693.5,2693.1,0.0011]
[1769836055450,1.62232635,2693.1,2692.9,0.0011]
[1769836062354,0.001,2693.2,2692.9,0.0011]
[1769836067228,0.001,2693.2,2693.1,0.0011]
[1769836067454,0.001,2693.2,2692.9,0.0011]
[1769836078967,0.001,2693.2,2693.1,0.0011]
[1769836079168,0.001,2693.2,2692.9,0.0011]
[1769836079867,0.001,2693.5,2693.0,1.3405853]
[1769836080178,0.001,2693.7,2693.1,2.02608734]
[1769836081671,0.001,2693.7,2693.2,0.92826377]
[1769836081884,1.62176452,2693.7,2692.9,0.0011]
[1769836083675,1.62076452,2693.5,2692.9,0.0011]
[1769836083877,1.62076452,2693.3,2692.9,0.0011]
[1769836084447,1.62076452,2693.6,2692.9,0.0011]
[1769836088474,1.50143816,2693.5,2692.9,0.0011]
[1769836090283,1.50143816,2693.5,2693.1,0.0011]
[1769836097406,1.50143816,2693.5,2692.9,0.0011]
[1769836102383,1.74449501,2693.5,2692.9,0.0011]
[1769836102583,1.74449501,2693.5,2693.1,0.0011]
[1769836110421,1.50143816,2693.4,2692.9,0.0011]
[1769836110858,1.50143816,2693.4,2692.3,0.778]
[1769836111045,1.76870398,2693.3,2692.1,0.92972026]
[1769836111228,1.76870398,2693.3,2692.2,0.92860719]
[1769836111551,1.76870398,2693.3,2692.1,0.9297234]
[1769836112856,1.50143816,2693.1,2692.1,1.29814279]
[1769836113165,1.50143816,2692.9,2692.1,1.29814279]
[1769836113455,1.50143816,2692.9,2692.1,0.0011]
[1769836115052,2.42983742,2692.9,2692.1,0.0011]
[1769836115253,1.50143816,2692.8,2692.1,0.0011]
[1769836116558,2.30143816,2692.6,2692.1,0.0011]
[1769836116748,2.53158198,2692.6,2692.1,0.0011]
[1769836116950,1.57804587,2692.5,2692.1,0.0011]
[1769836125468,1.03014382,2692.6,2692.1,0.0011]
[1769836127188,1.03014382,2692.6,2692.3,0.0011]
[1769836127485,0.23014382,2692.6,2692.3,0.0011]
[1769836127786,1.51177352,2693.1,2692.3,1.28655432]
[1769836127975,1.51177352,2693.1,2692.4,0.68093272]
[1769836128292,2.70829125,2693.3,2692.4,2.89490969]
[1769836128473,2.70829125,2693.3,2692.5,1.28483283]
[1769836129078,0.8,2693.1,2692.5,1.28483283]
[1769836129409,0.8,2693.1,2692.5,1.57437165]
[1769836130487,0.001,2693.3,2692.6,1.28361174]
[1769836131587,0.001,2693.3,2692.6,2.21206641]
[1769836131788,0.001,2693.3,2692.6,1.28361174]
[1769836131988,0.001,2693.3,2692.7,0.2501636]
[1769836132288,1.51277352,2693.3,2692.7,0.2501636]
[1769836132492,1.51277352,2693.3,2692.5,2.4986449]
[1769836133294,1.51277352,2693.3,2692.6,0.92846858]
[1769836134390,0.001,2693.3,2692.7,1.27949898]
[1769836135901,1.51277352,2693.7,2692.9,1.27894656]
[1769836136103,0.001,2693.7,2693.1,1.27894656]
[1769836136812,0.001,2693.7,2693.2,1.27839758]
[1769836138609,0.001,2693.7,2693.3,0.9282293]
[1769836139308,1.51177352,2694.4,2693.4,1.27217963]
[1769836139483,2.43957856,2694.6,2693.5,1.49222052]
[1769836139665,1.51277352,2694.5,2693.5,1.49222052]
[1769836139867,2.44058977,2694.5,2693.5,1.49222052]
[1769836140082,1.51177352,2694.4,2693.5,1.49222052]
[1769836140713,1.51177352,2694.4,2693.2,0.92824402]
[1769836140714,1.51177352,2694.2,2693.2,0.92824402]
[1769836141295,1.51177352,2694.2,2693.2,0.92826352]
[1769836141814,1.51177352,2694.1,2692.7,1.18728848]
[1769836141982,1.51177352,2694.1,2692.9,0.92833564]
[1769836142484,1.51177352,2694.1,2692.8,0.92837807]
[1769836142693,1.51177352,2693.9,2692.8,0.92840166]
[1769836145320,0.92805701,2693.8,2692.8,0.92840166]
[1769836145483,1.51177352,2693.7,2692.8,0.92840166]
[1769836145684,1.51177352,2693.7,2692.9,0.70943964]
[1769836148230,1.45941608,2693.6,2692.9,0.70943964]
[1769836149106,1.45941608,2693.6,2692.8,0.92840166]
[1769836151039,1.45941608,2693.6,2693.0,0.0011]
[1769836153110,1.45941608,2693.9,2693.0,0.0011]
[1769836153309,1.45941608,2693.9,2693.0,1.23476326]
[1769836155332,1.45941608,2693.7,2693.0,2.16309462]
[1769836155537,1.45941608,2693.7,2693.0,1.23476326]
[1769836158570,1.45941608,2693.7,2693.0,2.1630904]
[1769836163738,1.45941608,2693.7,2693.0,0.92942714]
[1769836167768,2.38750986,2693.7,2693.0,0.0011]
[1769836169070,1.45941608,2693.9,2693.0,1.78981096]
[1769836169465,1.45941608,2693.9,2693.1,1.19929816]
[1769836170177,1.45941608,2693.9,2693.0,0.58682918]
[1769836171089,2.38747309,2693.8,2693.0,1.51515058]
[1769836171753,0.92805701,2693.8,2693.0,1.51515058]
[1769836171954,2.38747309,2693.8,2693.0,1.51515058]
[1769836172166,2.38747309,2693.8,2693.1,0.27144487]
[1769836174380,2.38747309,2693.8,2693.2,0.0011]
[1769836174682,2.38747309,2693.8,2693.0,1.51515058]
[1769836174879,1.45941608,2693.8,2693.1,0.92829522]
[1769836175184,3.71238324,2694.5,2693.4,1.18790711]
[1769836175185,1.45941608,2694.3,2693.4,1.18790711]
[1769836175495,2.38730219,2694.3,2693.4,1.18790711]
[1769836177661,2.38730219,2694.3,2693.5,0.92816038]
[1769836180781,1.41965771,2694.2,2693.5,0.92816038]
[1769836180987,1.41965771,2694.2,2693.5,2.06323046]
[1769836181384,1.41965771,2694.2,2693.2,0.52284424]
[1769836181690,1.41965771,2694.2,2693.0,0.0011]
[1769836181868,1.43449148,2694.2,2693.0,0.0011]
[1769836183072,1.41965771,2694.0,2693.0,0.0011]
[1769836185777,0.92802256,2693.9,2693.0,0.0011]
[1769836185984,1.41965771,2693.8,2693.0,0.007982]
[1769836186184,1.41965771,2693.8,2693.2,0.0011]
[1769836196413,0.92901331,2694.0,2693.2,0.0011]
[1769836196709,0.92901331,2694.0,2693.2,1.15514332]
[1769836196710,2.34867102,2694.0,2693.2,1.15514332]
[1769836197086,1.41965771,2693.9,2693.2,0.0011]
[1769836198113,0.001,2694.0,2693.2,0.0011]
[1769836198313,1.42065771,2694.0,2693.2,1.15229152]
[1769836198486,0.001,2694.0,2693.3,1.3592505]
[1769836198693,0.001,2693.7,2693.3,1.3592505]
[1769836199215,0.001,2693.7,2693.4,0.92819484]
[1769836201132,1.42065771,2694.0,2693.4,0.92819484]
[1769836208628,1.42065771,2694.0,2693.5,1.13318174]
[1769836208629,0.001,2694.0,2693.5,1.13318174]
[1769836208831,0.001,2694.0,2693.6,1.3393194]
[1769836209207,0.001,2694.0,2693.6,0.20613766]
[1769836210731,0.001,2694.0,2693.6,1.13425104]
[1769836211237,1.49586312,2694.3,2693.6,1.13425104]
[1769836211530,1.49586312,2694.3,2693.7,0.48468869]
[1769836215624,1.49586312,2694.2,2693.7,0.48468869]
[1769836215999,1.49586312,2694.2,2693.6,1.13425104]
[1769836216201,1.49586312,2694.1,2693.6,0.20613766]
[1769836216525,1.49586312,2694.1,2693.4,0.92817498]
[1769836216723,1.49586312,2694.1,2693.3,1.13626472]
[1769836218326,1.49586312,2694.1,2693.4,0.92818894]
[1769836222410,1.49586312,2694.3,2693.4,2.0456253]
[1769836222617,1.49586312,2694.3,2693.5,1.14883361]
[1769836222800,1.49586312,2694.2,2693.6,0.0011]
[1769836223013,0.001,2693.9,2693.6,0.0011]
[1769836224040,1.49586312,2694.2,2693.6,0.0011]
[1769836224216,1.49586312,2694.2,2693.6,0.2059587]
[1769836224630,1.49586312,2694.2,2693.6,1.13406084]
[1769836228103,0.001,2694.5,2693.7,1.11412374]
[1769836228104,1.49686312,2694.5,2693.7,1.11412374]
[1769836228308,1.49586312,2694.4,2693.8,0.77674499]
[1769836228501,1.49586312,2694.4,2693.6,1.13406084]
[1769836235345,0.001,2694.2,2693.6,1.13406084]
[1769836235842,0.001,2694.2,2693.6,2.24057757]
[1769836236955,0.001,2694.2,2693.6,1.13406084]
[1769836237250,0.001,2694.2,2693.7,0.48465646]
[1769836237450,0.001,2694.2,2693.8,0.92805701]
[1769836246059,1.37750657,2694.5,2693.8,0.92805701]
[1769836246233,0.001,2694.5,2693.9,5.5192653]
[1769836246431,0.001,2694.5,2694.0,0.64473223]
[1769836248232,0.001,2694.2,2694.1,0.92795367]
[1769836248443,0.001,2694.5,2694.1,0.92795367]
[1769836248867,1.37650657,2694.7,2694.1,0.92795367]
[1769836249054,1.37650657,2694.7,2694.2,0.52846255]
[1769836249767,1.37650657,2694.9,2694.2,0.52846255]
[1769836250064,1.37650657,2695.1,2694.2,1.62188729]
[1769836250364,1.37650657,2695.1,2694.3,2.27554982]
[1769836251464,1.37650657,2695.1,2694.3,3.05354982]
[1769836253460,1.37650657,2695.1,2694.3,1.96086889]
[1769836254540,1.37650657,2695.0,2694.3,1.96086889]
[1769836254867,1.37650657,2695.0,2694.3,1.70588479]
[1769836255671,1.37650657,2695.0,2694.3,0.778]
[1769836256471,1.37650657,2694.9,2694.3,0.778]
[1769836257863,1.37650657,2694.9,2694.2,0.92791468]
[1769836258647,1.37650657,2694.9,2693.9,1.16159286]
[1769836260758,1.37650657,2694.9,2694.4,0.0011]
[1769836260993,1.37650657,2694.6,2694.4,0.0011]
[1769836262814,0.001,2694.7,2694.4,0.0011]
[1769836267712,2.43003921,2695.1,2694.4,0.0011]
[1769836268017,1.50242465,2695.0,2694.4,0.0011]
[1769836274493,1.50242465,2695.2,2694.4,0.0011]
[1769836274693,1.50242465,2695.2,2694.6,0.0011]
[1769836275016,0.001,2694.8,2694.6,0.0011]
[1769836275695,1.50242465,2695.2,2694.6,0.0011]
[1769836277152,0.001,2695.3,2694.8,6.59103127]
[1769836277431,0.001,2695.9,2694.9,1.7308691]
[1769836277432,1.46602465,2695.8,2694.9,1.7308691]
[1769836278319,1.46602465,2695.8,2694.9,0.65910313]
[1769836279326,0.92737609,2695.8,2695.0,0.92764378]
[1769836279523,1.50242465,2695.7,2695.0,0.92764378]
[1769836279827,1.50242465,2695.7,2695.1,0.5297443]
[1769836282206,1.50242465,2695.7,2695.1,1.45735185]
[1769836285734,1.50242465,2695.7,2695.1,0.5297443]
[1769836285938,1.50242465,2695.6,2694.6,0.92886147]
[1769836286608,1.50242465,2695.6,2694.9,0.92766027]
[1769836287937,1.50242465,2695.5,2695.3,0.0011]
[1769836288138,1.50242465,2695.5,2695.0,0.0011]
[1769836296222,1.50242465,2695.8,2695.0,0.0011]
[1769836297414,1.50242465,2695.8,2695.1,0.92760936]
[1769836299444,1.47479886,2695.7,2695.1,0.92760936]
[1769836299744,1.47479886,2695.7,2695.2,0.0011]
[1769836300043,1.47579886,2695.6,2695.2,0.0011]
[1769836300431,1.47579886,2695.6,2695.2,0.4855197]
[1769836300635,1.47579886,2695.6,2695.2,0.0011]
[1769836309030,1.47579886,2695.6,2695.0,0.0011]
[1769836312177,0.001,2695.6,2695.0,0.0011]
[1769836312689,1.47579886,2695.6,2695.2,0.0011]
[1769836312863,0.001,2695.4,2695.2,0.0011]
[1769836314787,1.47579886,2695.9,2695.2,0.0011]
[1769836314990,1.47479886,2695.8,2695.2,0.0011]
[1769836318975,1.47479886,2695.7,2695.2,0.0011]
[1769836321165,1.47479886,2695.5,2695.2,0.0011]
[1769836321556,1.47479886,2695.5,2695.0,0.0011]
[1769836323996,1.47479886,2695.3,2694.6,0.0011]
[1769836324303,1.47479886,2695.3,2694.7,0.3712226]
[1769836325894,1.47479886,2695.3,2694.9,0.0011]
[1769836326971,0.001,2695.4,2694.9,0.0011]
[1769836327174,1.42745787,2695.8,2694.9,0.97779642]
[1769836327384,0.001,2695.9,2695.1,0.97669642]
[1769836327582,0.001,2695.9,2695.2,0.6490547]
[1769836328167,0.001,2695.9,2695.3,0.92754053]
[1769836328384,0.001,2695.9,2695.2,1.57660549]
[1769836328585,1.42845787,2695.9,2695.2,1.57660549]
[1769836329291,0.001,2695.9,2695.3,0.95646092]
[1769836329496,0.001,2695.9,2695.4,0.25330664]
[1769836329702,1.42845787,2695.9,2695.4,0.25330664]
[1769836335209,1.42845787,2695.9,2695.4,1.18081223]
[1769836337010,1.42845787,2695.9,2695.4,0.25330664]
[1769836338118,1.42845787,2695.9,2695.4,1.18080755]
[1769836338535,1.42845787,2695.9,2695.4,0.25330664]
[1769836338934,0.001,2695.7,2695.4,0.25330664]
[1769836340335,0.001,2695.7,2695.4,1.18080713]
[1769836340542,0.001,2695.7,2695.5,0.48909557]
[1769836341752,0.27916616,2696.0,2695.5,0.48909557]
[1769836343226,0.27916616,2696.0,2695.5,1.4165671]
[1769836343763,0.27916616,2696.0,2695.5,0.48909557]
[1769836344958,0.27916616,2696.0,2695.5,2.2352871]
[1769836345251,1.70662403,2696.0,2695.6,0.61984806]
[1769836345457,1.70662403,2696.0,2695.5,0.48909557]
[1769836345629,2.63392482,2696.0,2695.5,0.48909557]
[1769836345834,1.42745787,2695.9,2695.3,0.92750908]
[1769836347434,1.42745787,2695.9,2695.1,3.71038814]
[1769836350579,1.42745787,2695.9,2695.3,0.0011]
[1769836351279,0.27916616,2696.0,2695.3,0.0011]
[1769836351774,0.27916616,2696.0,2695.3,0.76326701]
[1769836352978,1.70662403,2696.0,2695.4,0.92750612]
[1769836353178,1.70662403,2696.0,2695.5,0.5400911]
[1769836355747,1.70662403,2696.0,2695.4,0.92750612]
[1769836356990,1.70662403,2696.0,2695.3,0.0011]
[1769836358906,1.28398662,2695.8,2695.0,0.0011]
[1769836359061,1.28398662,2695.6,2695.0,0.0011]
[1769836362684,1.28398662,2695.6,2695.5,0.0011]
[1769836362879,1.50512457,2695.6,2695.3,0.0011]
[1769836365291,1.28398662,2695.6,2695.3,0.0011]
[1769836374811,1.28398662,2695.6,2695.5,0.0011]
[1769836374993,2.21135823,2695.8,2695.3,0.0011]
[1769836375297,1.28398662,2695.8,2695.3,0.0011]
[1769836377310,1.28398662,2695.9,2695.3,0.0011]
[1769836377501,1.77554357,2695.9,2695.3,0.0011]
[1769836378396,2.70288067,2695.9,2695.3,0.0011]
[1769836381017,1.28398662,2695.9,2695.3,0.0011]
[1769836381218,0.27916616,2696.0,2695.3,0.55686374]
[1769836381926,0.27916616,2696.0,2695.3,0.0011]
[1769836381927,1.56315278,2696.0,2695.3,0.0011]
[1769836383099,1.56315278,2696.0,2695.3,0.92864053]
[1769836384996,1.56315278,2696.0,2695.4,0.51946449]
[1769836386431,1.56315278,2696.0,2695.5,0.0011]
[1769836386725,0.001,2695.8,2695.5,0.0011]
[1769836388624,1.56315278,2696.0,2695.5,0.0011]
[1769836396850,3.911,2697.2,2695.5,0.0011]
[1769836396851,3.70821671,2696.8,2695.6,0.19830316]
[1769836397054,1.20773453,2697.1,2695.6,0.19830316]
[1769836397055,0.55533453,2697.0,2695.9,5.51317828]
[1769836397341,1.10533453,2696.5,2695.7,1.1128649]
[1769836398609,0.001,2695.8,2695.7,1.1128649]
[1769836398816,1.10533453,2696.3,2695.7,1.1128649]
[1769836399018,0.92700278,2696.9,2695.8,0.92736849]
[1769836399218,1.10533453,2696.8,2695.9,0.57497074]
[1769836402169,1.10533453,2696.8,2696.0,0.9272997]
[1769836405443,1.10533453,2696.8,2696.0,1.64111231]
[1769836405755,1.10533453,2696.8,2696.0,0.9272997]
[1769836405956,1.10533453,2696.8,2696.1,0.52115782]
[1769836406545,1.10533453,2696.7,2696.1,0.52115782]
[1769836406876,1.10202553,2696.7,2696.1,0.52115782]
[1769836407381,1.10202553,2696.7,2696.1,1.44842017]
[1769836410681,1.10533453,2696.5,2696.1,1.44842017]
[1769836410847,1.10533453,2696.5,2696.2,1.44298983]
[1769836412491,1.10533453,2696.5,2696.2,0.51575945]
[1769836412696,1.10533453,2696.5,2696.1,1.44840059]
[1769836420809,5.5258824,2697.1,2696.1,1.44840059]
[1769836420810,1.15173575,2697.1,2696.1,1.44840059]
[1769836421174,1.16656952,2697.0,2696.2,1.10533453]
[1769836421379,1.15173575,2696.8,2696.1,0.92724277]
[1769836422104,1.15173575,2696.8,2696.3,0.0011]
[1769836426318,1.15173575,2696.8,2696.1,0.92724277]
[1769836432654,1.15173575,2696.8,2696.0,3.71027704]
[1769836434755,1.15173575,2696.8,2696.2,0.0011]
[1769836434959,1.15173575,2696.6,2696.2,0.0011]
[1769836435134,1.15273575,2696.6,2696.2,0.0011]
[1769836435530,0.001,2696.6,2696.2,0.0011]
[1769836436969,0.001,2696.6,2696.2,0.92833091]
[1769836437143,1.15273575,2696.6,2696.2,0.92833091]
[1769836437343,1.14942675,2696.6,2696.2,0.92833091]
[1769836438273,1.14942675,2696.6,2696.2,1.39218899]
[1769836441879,1.15173575,2697.0,2696.2,1.39218899]
[1769836447956,1.15173575,2697.0,2696.3,0.0011]
[1769836448156,0.001,2696.8,2696.3,0.0011]
[1769836448453,1.01657349,2696.8,2696.3,0.0011]
[1769836449378,1.01657349,2696.8,2696.3,1.43850551]
[1769836449582,0.001,2696.8,2696.3,1.43850551]
[1769836454696,1.01557349,2696.5,2696.0,0.0011]
[1769836455490,1.01557349,2696.5,2696.0,0.92839172]
[1769836455787,1.01657349,2696.8,2696.0,0.58244471]
[1769836455996,1.01657349,2696.8,2696.2,0.92721147]
[1769836456165,1.01657349,2696.8,2696.2,1.44907294]
[1769836456373,1.01657349,2696.8,2696.2,0.52186147]
[1769836456701,1.01557349,2696.7,2696.0,0.0011]
[1769836459600,1.01557349,2696.5,2696.0,0.0011]
[1769836461206,1.01557349,2696.5,2696.4,0.0011]
[1769836461405,1.01557349,2696.5,2696.1,0.0011]
[1769836461586,1.01557349,2696.3,2696.1,0.0011]
[1769836464589,1.01557349,2696.2,2696.1,0.0011]
[1769836464789,1.01557349,2696.2,2695.5,0.92857171]
[1769836465710,1.94268578,2696.6,2695.6,0.56341057]
[1769836466005,1.01557349,2696.6,2695.6,0.56341057]
[1769836466217,1.01557349,2696.6,2695.8,0.5617146]
[1769836466578,1.01657349,2696.8,2695.9,1.48904869]
[1769836467407,1.01657349,2696.8,2696.0,0.5600497]
[1769836468506,1.01657349,2696.8,2696.1,0.9272653]
[1769836468807,1.01657349,2696.8,2695.8,0.55840328]
[1769836469110,1.01657349,2696.8,2696.0,0.92728647]
[1769836469111,1.01557349,2696.7,2696.0,0.92728647]
[1769836469284,1.01557349,2696.7,2696.0,1.44679819]
[1769836472282,1.94264433,2696.7,2696.0,1.44679819]
[1769836472481,1.01557349,2696.6,2696.0,1.44679819]
[1769836473612,1.01557349,2696.6,2696.2,0.0011]
[1769836473982,0.001,2696.5,2696.2,0.0011]
[1769836475315,1.01657349,2696.5,2696.2,0.0011]
[1769836477818,1.21093792,2696.5,2696.2,0.0011]
[1769836482617,1.01657349,2696.5,2696.2,0.0011]
[1769836484624,1.01657349,2696.5,2696.0,0.0011]
[1769836486929,0.001,2696.3,2696.0,0.0011]
[1769836495953,0.001,2696.5,2696.0,0.51990706]
[1769836496347,1.00647801,2696.9,2696.0,0.51990706]
[1769836496657,1.00647801,2697.1,2696.3,0.51762558]
[1769836497021,0.92684288,2697.4,2696.3,0.51762558]
[1769836497022,1.00647801,2697.3,2696.3,0.51762558]
[1769836501367,1.00647801,2697.3,2696.4,1.43895543]
[1769836501574,1.00647801,2697.3,2696.5,0.5147604]
[1769836501885,1.00647801,2697.2,2696.5,0.5147604]
[1769836502077,1.00647801,2697.2,2696.2,0.0011]
[1769836502078,1.00647801,2697.1,2696.2,0.0011]
[1769836502248,1.02131178,2697.1,2696.2,0.0011]
[1769836503571,1.00647801,2696.9,2696.2,0.0011]
[1769836503767,1.00647801,2696.7,2696.2,0.0011]
[1769836506878,1.044679,2696.6,2696.2,0.0011]
[1769836507593,1.044679,2696.6,2696.0,0.0011]
[1769836510076,1.044679,2696.5,2696.2,0.0011]
[1769836510373,1.044679,2696.3,2696.2,0.0011]
[1769836510743,1.044679,2696.3,2696.0,0.0011]
[1769836513489,0.19717757,2696.4,2696.0,0.0011]
[1769836514454,0.001,2696.5,2696.0,0.0011]
[1769836521983,0.001,2696.5,2696.2,0.0011]
[1769836522557,1.045679,2696.5,2696.0,0.0011]
[1769836524791,1.044679,2696.4,2696.0,0.0011]
[1769836526899,1.044679,2696.3,2696.0,0.0011]
[1769836527075,1.24196518,2696.3,2696.0,0.0011]
[1769836529797,0.19728618,2696.3,2696.0,0.0011]
[1769836530097,1.045679,2696.5,2696.0,0.0011]
[1769836530305,0.001,2696.5,2696.0,0.0011]
[1769836533792,0.001,2696.5,2696.2,0.0011]